lending/lending_fUSD_20240710
["ID","MTS","AMOUNT","RATE_DAILY","PERIOD"]
[331609530,1720578772962,-976.94,0.00014157,2]
[331609531,1720578772971,-500.0,0.00014157,2]
[331609532,1720578772981,-2477.3,0.00014157,2]
[331609533,1720578772991,-500.0,0.00014157,2]
[331609534,1720578773000,-2257.18,0.00014157,2]
[331609535,1720578773009,-500.0,0.00014157,2]
[331609536,1720578773019,-706.93,0.00014157,2]
[331609537,1720578773028,-3448.23,0.00014157,2]
[331609538,1720578773038,-1232.81,0.00014157,2]
[331609539,1720578773048,-500.0,0.00014157,2]
[331609540,1720578773057,-2894.3,0.00014157,2]
[331609541,1720578773067,-500.0,0.00014157,2]
[331609542,1720578773076,-500.0,0.00014157,2]
[331609543,1720578773086,-3384.27,0.00014157,2]
[331609544,1720578773095,-500.0,0.00014157,2]
[331609545,1720578773104,-2196.93,0.00014157,2]
[331609546,1720578773113,-654.33,0.00014157,2]
[331609547,1720578773122,-236.63561681,0.00014157,2]
[331609548,1720578773132,-1728.08,0.00014157,2]
[331609549,1720578773141,-500.0,0.00014157,2]
[331609550,1720578773154,-1210.93,0.00014157,2]
[331609551,1720578773164,-500.0,0.00014157,2]
[331609552,1720578773174,-903.93,0.00014157,2]
[331609553,1720578773183,-1238.02,0.00014157,2]
[331609554,1720578773193,-500.0,0.00014157,2]
[331609555,1720578773203,-500.0,0.00014157,2]
[331609556,1720578773213,-962.6,0.00014157,2]
[331609557,1720578773223,-2167.98,0.00014157,2]
[331609558,1720578773233,-2623.08,0.00014157,2]
[331609559,1720578773243,-2704.83,0.00014157,2]
[331609560,1720578773254,-582.73,0.00014157,2]
[331609561,1720578773263,-500.0,0.00014157,2]
[331609562,1720578773273,-500.0,0.00014157,2]
[331609563,1720578773284,-4998.81,0.00014157,2]
[331609564,1720578773293,-1239.67,0.00014157,2]
[331609565,1720578773303,-3378.14,0.00014157,2]
[331609566,1720578773313,-864.0,0.00014157,2]
[331609567,1720578773323,-1140.18,0.00014157,2]
[331609568,1720578773332,-1566.26,0.00014157,2]
[331609569,1720578773342,-2247.97,0.00014157,2]
[331609570,1720578773352,-655.24,0.00014157,2]
[331609571,1720578773362,-500.0,0.00014157,2]
[331609572,1720578773372,-500.0,0.00014157,2]
[331609573,1720578773382,-854.28,0.00014157,2]
[331609574,1720578773392,-3977.48,0.00014157,2]
[331609575,1720578773401,-500.0,0.00014157,2]
[331609576,1720578773410,-2144.39,0.00014157,2]
[331609577,1720578773420,-500.0,0.00014157,2]
[331609578,1720578773429,-4020.96,0.00014157,2]
[331609579,1720578773438,-764.37,0.00014157,2]
[331609580,1720578773447,-547.38,0.00014157,2]
[331609581,1720578773457,-1467.22,0.00014157,2]
[331609582,1720578773466,-655.77,0.00014157,2]
[331609583,1720578773476,-1834.97,0.00014157,2]
[331609584,1720578773485,-3134.08,0.00014157,2]
[331609585,1720578773495,-889.54,0.00014157,2]
[331609586,1720578773504,-593.79,0.00014157,2]
[331609587,1720578773514,-835.98,0.00014157,2]
[331609588,1720578773524,-661.66,0.00014157,2]
[331609589,1720578773534,-2100.02,0.00014157,2]
[331609590,1720578773543,-526.65204424,0.00014157,2]
[331609591,1720578773553,-550.66,0.00014157,2]
[331609592,1720578773563,-1202.72065724,0.00014157,2]
[331609593,1720578773581,-2309.70934276,0.00014157,2]
[331609594,1720578773737,-500.0,0.00014157,2]
[331609595,1720578773747,-1483.16,0.00014157,2]
[331609596,1720578773757,-476.58965346,0.00014157,2]
[331609597,1720578773767,-6244.58,0.00014157,2]
[331609598,1720578773777,-2849.79,0.00014157,2]
[331609599,1720578773786,-500.0,0.00014157,2]
[331609600,1720578773796,-500.0,0.00014157,2]
[331609601,1720578773805,-500.0,0.00014157,2]
[331609602,1720578773815,-1467.17,0.00014157,2]
[331609603,1720578773824,-567.1,0.00014157,2]
[331609604,1720578773833,-500.0,0.00014157,2]
[331609605,1720578773843,-1245.43,0.00014157,2]
[331609606,1720578773853,-500.0,0.00014157,2]
[331609607,1720578773862,-500.0,0.00014157,2]
[331609608,1720578773872,-657.91,0.00014157,2]
[331609609,1720578773882,-500.0,0.00014157,2]
[331609610,1720578773894,-1230.11,0.00014157,2]
[331609611,1720578773904,-1858.66,0.00014157,2]
[331609612,1720578773913,-3451.64,0.00014157,2]
[331609613,1720578773923,-714.23,0.00014157,2]
[331609614,1720578773932,-500.0,0.00014157,2]
[331609615,1720578773943,-5993.12,0.00014157,2]
[331609616,1720578773952,-500.0,0.00014157,2]
[331609617,1720578773962,-968.04,0.00014157,2]
[331609618,1720578773972,-917.99,0.00014157,2]
[331609619,1720578773982,-2591.74,0.00014157,2]
[331609620,1720578773992,-836.08,0.00014157,2]
[331609621,1720578774001,-500.0,0.00014157,2]
[331609622,1720578774011,-844.97,0.00014157,2]
[331609623,1720578774021,-3786.27,0.00014157,2]
[331609624,1720578774030,-500.0,0.00014157,2]
[331609625,1720578774040,-500.0,0.00014157,2]
[331609626,1720578774050,-1296.43,0.00014157,2]
[331609627,1720578774060,-838.6,0.00014157,2]
[331609628,1720578774069,-2503.8,0.00014157,2]
[331609629,1720578774080,-3965.45,0.00014157,2]
[331609630,1720578774090,-500.0,0.00014157,2]
[331609631,1720578774100,-500.0,0.00014157,2]
[331609632,1720578774109,-1205.83,0.00014157,2]
[331609633,1720578774119,-500.0,0.00014157,2]
[331609634,1720578774129,-770.23,0.00014157,2]
[331609635,1720578774138,-3383.54,0.00014157,2]
[331609636,1720578774148,-1512.13,0.00014157,2]
[331609637,1720578774159,-2688.28,0.00014157,2]
[331609638,1720578774168,-1577.95,0.00014157,2]
[331609639,1720578774178,-500.0,0.00014157,2]
[331609640,1720578774189,-500.0,0.00014157,2]
[331609641,1720578774199,-1729.82,0.00014157,2]
[331609642,1720578774208,-500.0,0.00014157,2]
[331609643,1720578774218,-500.0,0.00014157,2]
[331609644,1720578774227,-500.0,0.00014157,2]
[331609645,1720578774236,-500.0,0.00014157,2]
[331609646,1720578774246,-500.0,0.00014157,2]
[331609647,1720578774256,-500.0,0.00014157,2]
[331609648,1720578774265,-1212.72,0.00014157,2]
[331609649,1720578774275,-1016.3,0.00014157,2]
[331609650,1720578774284,-500.0,0.00014157,2]
[331609651,1720578774294,-500.0,0.00014157,2]
[331609652,1720578774304,-200.0,0.00014157,2]
[331609653,1720578774313,-984.92,0.00014157,2]
[331609654,1720578774323,-562.45,0.00014157,2]
[331609655,1720578774334,-724.17,0.00014157,2]
[331609656,1720578774343,-500.0,0.00014157,2]
[331609657,1720578774353,-500.0,0.00014157,2]
[331609658,1720578774363,-500.0,0.00014157,2]
[331609659,1720578774373,-931.23,0.00014157,2]
[331609660,1720578774382,-500.0,0.00014157,2]
[331609661,1720578774392,-500.0,0.00014157,2]
[331609662,1720578774402,-1577.0,0.00014157,2]
[331609663,1720578774412,-879.14,0.00014157,2]
[331609664,1720578774421,-3142.16,0.00014157,2]
[331609665,1720578774431,-1945.3,0.00014157,2]
[331609666,1720578774440,-1928.45,0.00014157,2]
[331609667,1720578774450,-500.0,0.00014157,2]
[331609668,1720578774459,-500.0,0.00014157,2]
[331609669,1720578774469,-500.0,0.00014157,2]
[331609670,1720578774478,-500.0,0.00014157,2]
[331609671,1720578774488,-500.0,0.00014157,2]
[331609672,1720578774497,-500.0,0.00014157,2]
[331609673,1720578774506,-639.51,0.00014157,2]
[331609674,1720578774516,-500.0,0.00014157,2]
[331609675,1720578774525,-1207.67,0.00014157,2]
[331609676,1720578774538,-500.0,0.00014157,2]
[331609677,1720578774548,-500.0,0.00014157,2]
[331609678,1720578774558,-500.0,0.00014157,2]
[331609679,1720578774568,-1000.0,0.00014157,2]
[331609680,1720578774578,-500.0,0.00014157,2]
[331609681,1720578774588,-776.82,0.00014157,2]
[331609682,1720578774598,-500.0,0.00014157,2]
[331609683,1720578774608,-620.87633529,0.00014157,2]
[331609684,1720578774618,-500.0,0.00014158,2]
[331609685,1720578774627,-500.0,0.00014158,2]
[331609686,1720578774637,-863.45,0.00014158,2]
[331609687,1720578774647,-692.27,0.00014158,2]
[331609688,1720578774658,-1710.86,0.00014158,2]
[331609689,1720578774666,-422.69875683,0.00014158,2]
[331609690,1720578774674,-322.43,0.00014158,2]
[331609691,1720578774684,-2134.95,0.00014158,2]
[331609692,1720578774694,-500.0,0.00014158,2]
[331609693,1720578774704,-500.0,0.00014158,2]
[331609694,1720578774714,-500.0,0.00014158,2]
[331609695,1720578774723,-500.0,0.00014158,2]
[331609696,1720578774733,-500.0,0.00014158,2]
[331609697,1720578774742,-1192.7,0.00014158,2]
[331609698,1720578774751,-1517.28,0.00014158,2]
[331609699,1720578774761,-500.0,0.00014158,2]
[331609700,1720578774770,-1017.28,0.00014158,2]
[331609701,1720578774782,-1181.86,0.00014158,2]
[331609702,1720578774791,-500.0,0.00014158,2]
[331609703,1720578774801,-654.08,0.00014158,2]
[331609704,1720578774810,-500.0,0.00014158,2]
[331609705,1720578774820,-987.54,0.00014158,2]
[331609706,1720578774829,-500.0,0.00014158,2]
[331609707,1720578774839,-2995.94,0.00014158,2]
[331609708,1720578774848,-1054.31,0.00014158,2]
[331609709,1720578774858,-2165.91,0.00014158,2]
[331609710,1720578774868,-500.0,0.00014158,2]
[331609711,1720578774878,-607.6,0.00014158,2]
[331609712,1720578774889,-1354.21,0.00014158,2]
[331609713,1720578774898,-1784.17,0.00014158,2]
[331609714,1720578774908,-500.0,0.00014158,2]
[331609715,1720578774917,-500.0,0.00014158,2]
[331609716,1720578774927,-1937.6,0.00014158,2]
[331609717,1720578774937,-516.92,0.00014158,2]
[331609718,1720578774946,-1991.09,0.00014158,2]
[331609719,1720578774956,-1109.41,0.00014158,2]
[331609720,1720578774966,-1472.59,0.00014158,2]
[331609721,1720578774975,-2752.23,0.00014158,2]
[331609722,1720578774985,-2851.3,0.00014158,2]
[331609723,1720578774995,-500.0,0.00014158,2]
[331609724,1720578775004,-1647.37,0.00014158,2]
[331609725,1720578775013,-2067.21,0.00014158,2]
[331609726,1720578775023,-1761.2,0.00014158,2]
[331609727,1720578775032,-732.14,0.00014158,2]
[331609728,1720578775041,-1232.3,0.00014158,2]
[331609729,1720578775051,-2391.69,0.00014158,2]
[331609730,1720578775061,-500.0,0.00014158,2]
[331609731,1720578775070,-526.95,0.00014158,2]
[331609732,1720578775079,-547.38,0.00014158,2]
[331609733,1720578775101,-585.5,0.00014158,2]
[331609734,1720578775111,-500.0,0.00014158,2]
[331609735,1720578775122,-1452.15,0.00014158,2]
[331609736,1720578775131,-1107.7,0.00014158,2]
[331609737,1720578775142,-500.0,0.00014158,2]
[331609738,1720578775153,-1314.31,0.00014158,2]
[331609739,1720578775163,-500.0,0.00014158,2]
[331609740,1720578775173,-1357.14,0.00014158,2]
[331609741,1720578775184,-1164.74,0.00014158,2]
[331609742,1720578775195,-500.0,0.00014158,2]
[331609743,1720578775204,-500.0,0.00014158,2]
[331609744,1720578775214,-2541.37,0.00014158,2]
[331609745,1720578775224,-2269.15,0.00014158,2]
[331609746,1720578775234,-500.0,0.00014158,2]
[331609747,1720578775243,-677.36,0.00014158,2]
[331609748,1720578775252,-1092.06,0.00014158,2]
[331609749,1720578775262,-706.32,0.00014158,2]
[331609750,1720578775272,-652.31,0.00014158,2]
[331609751,1720578775281,-1323.65,0.00014158,2]
[331609752,1720578775292,-3373.37,0.00014158,2]
[331609753,1720578775302,-500.0,0.00014158,2]
[331609754,1720578775311,-1840.96,0.00014158,2]
[331609755,1720578775321,-2752.03,0.00014158,2]
[331609756,1720578775331,-865.68,0.00014158,2]
[331609757,1720578775341,-500.0,0.00014158,2]
[331609758,1720578775351,-500.0,0.00014158,2]
[331609759,1720578775360,-2161.78,0.00014158,2]
[331609760,1720578775371,-630.4,0.00014158,2]
[331609761,1720578775380,-500.0,0.00014158,2]
[331609762,1720578775390,-1387.02,0.00014158,2]
[331609763,1720578775400,-500.0,0.00014158,2]
[331609764,1720578775410,-2201.53,0.00014158,2]
[331609765,1720578775420,-2690.13,0.00014158,2]
[331609766,1720578775430,-755.58,0.00014158,2]
[331609767,1720578775439,-500.0,0.00014158,2]
[331609768,1720578775449,-3077.31,0.00014158,2]
[331609769,1720578775458,-500.0,0.00014158,2]
[331609770,1720578775467,-507.74,0.00014158,2]
[331609771,1720578775477,-500.0,0.00014158,2]
[331609772,1720578775486,-2251.02474584,0.00014158,2]
[331609773,1720578775503,-913.64525416,0.00014158,2]
[331609774,1720578775513,-652.98,0.00014158,2]
[331609775,1720578775523,-500.0,0.00014158,2]
[331609776,1720578775532,-2774.62,0.00014158,2]
[331609777,1720578775542,-500.0,0.00014158,2]
[331609778,1720578775552,-500.0,0.00014158,2]
[331609779,1720578775561,-1061.39,0.00014158,2]
[331609780,1720578775571,-500.0,0.00014158,2]
[331609781,1720578775580,-2518.94,0.00014158,2]
[331609782,1720578775590,-500.0,0.00014158,2]
[331609783,1720578775599,-3436.86,0.00014158,2]
[331609784,1720578775609,-1304.47,0.00014158,2]
[331609785,1720578775618,-500.0,0.00014158,2]
[331609786,1720578775628,-5696.56,0.00014158,2]
[331609787,1720578775637,-500.0,0.00014158,2]
[331609788,1720578775647,-727.9,0.00014158,2]
[331609789,1720578775657,-500.0,0.00014158,2]
[331609790,1720578775667,-527.91,0.00014158,2]
[331609791,1720578775677,-733.34,0.00014158,2]
[331609792,1720578775687,-834.6,0.00014158,2]
[331609793,1720578775697,-500.0,0.00014158,2]
[331609794,1720578775707,-500.0,0.00014158,2]
[331609795,1720578775717,-1170.38,0.00014158,2]
[331609796,1720578775727,-2703.57,0.00014158,2]
[331609797,1720578775737,-1410.52,0.00014158,2]
[331609798,1720578775746,-500.0,0.00014158,2]
[331609799,1720578775756,-710.8,0.00014158,2]
[331609800,1720578775766,-924.07,0.00014158,2]
[331609801,1720578775776,-1580.34,0.00014158,2]
[331609802,1720578775785,-500.0,0.00014158,2]
[331609803,1720578775794,-2432.31,0.00014158,2]
[331609804,1720578775804,-500.0,0.00014158,2]
[331609805,1720578775814,-2887.55,0.00014158,2]
[331609806,1720578775824,-1197.44,0.00014158,2]
[331609807,1720578775834,-573.03,0.00014158,2]
[331609808,1720578775844,-2491.04,0.00014158,2]
[331609809,1720578775854,-824.06,0.00014158,2]
[331609810,1720578775864,-502.79,0.00014158,2]
[331609811,1720578775874,-1513.67,0.00014158,2]
[331609812,1720578775884,-901.58,0.00014158,2]
[331609813,1720578775895,-572.84987697,0.00014158,2]
[331609814,1720578775906,-500.0,0.00014158,2]
[331609815,1720578775916,-500.0,0.00014158,2]
[331609816,1720578775926,-658.31,0.00014158,2]
[331609817,1720578775936,-500.0,0.00014158,2]
[331609818,1720578775946,-3723.61,0.00014158,2]
[331609819,1720578775955,-1842.59,0.00014158,2]
[331609820,1720578775965,-500.0,0.00014158,2]
[331609821,1720578775975,-500.0,0.00014158,2]
[331609822,1720578775984,-500.0,0.00014158,2]
[331609823,1720578775994,-500.0,0.00014158,2]
[331609824,1720578776004,-3126.15,0.00014158,2]
[331609825,1720578776013,-963.4,0.00014158,2]
[331609826,1720578776023,-500.0,0.00014158,2]
[331609827,1720578776033,-500.0,0.00014158,2]
[331609828,1720578776043,-2795.73,0.00014158,2]
[331609829,1720578776052,-1148.88,0.00014158,2]
[331609830,1720578776061,-1515.65,0.00014158,2]
[331609831,1720578776071,-3926.91,0.00014158,2]
[331609832,1720578776080,-1067.87,0.00014158,2]
[331609833,1720578776089,-839.35,0.00014158,2]
[331609834,1720578776099,-3821.49,0.00014158,2]
[331609835,1720578776110,-1604.72,0.00014158,2]
[331609836,1720578776120,-500.0,0.00014158,2]
[331609837,1720578776130,-4888.15,0.00014158,2]
[331609838,1720578776139,-1623.67,0.00014158,2]
[331609839,1720578776151,-500.0,0.00014158,2]
[331609840,1720578776161,-661.72,0.00014158,2]
[331609841,1720578776171,-500.0,0.00014158,2]
[331609842,1720578776183,-1501.83,0.00014158,2]
[331609843,1720578776193,-500.0,0.00014158,2]
[331609844,1720578776205,-1401.76,0.00014158,2]
[331609845,1720578776215,-500.0,0.00014158,2]
[331609846,1720578776225,-1061.57,0.00014158,2]
[331609847,1720578776235,-741.03,0.00014158,2]
[331609848,1720578776245,-537.65,0.00014158,2]
[331609849,1720578776254,-684.66,0.00014158,2]
[331609850,1720578776264,-1170.81,0.00014158,2]
[331609851,1720578776273,-2691.6,0.00014158,2]
[331609852,1720578776282,-500.0,0.00014158,2]
[331609853,1720578776291,-500.0,0.00014158,2]
[331609854,1720578776301,-924.35,0.00014158,2]
[331609855,1720578776310,-602.51398459,0.00014158,2]
[331609856,1720578776320,-650.77,0.00014158,2]
[331609857,1720578776330,-3616.61,0.00014158,2]
[331609858,1720578776340,-500.0,0.00014158,2]
[331609859,1720578776349,-1042.86,0.00014158,2]
[331609860,1720578776359,-356.72718074,0.00014158,2]
[331609861,1720578776369,-500.0,0.00014158,2]
[331609862,1720578776378,-224.40823018,0.00014158,2]
[331609863,1720578776387,-500.0,0.00014158,2]
[331609864,1720578776397,-500.0,0.00014158,2]
[331609865,1720578776407,-500.0,0.00014158,2]
[331609866,1720578776416,-1099.76,0.00014158,2]
[331609867,1720578776429,-3471.64,0.00014158,2]
[331609868,1720578776438,-614.93,0.00014158,2]
[331609869,1720578776448,-632.86,0.00014158,2]
[331609870,1720578776458,-659.18,0.00014158,2]
[331609871,1720578776468,-1436.02,0.00014158,2]
[331609872,1720578776478,-500.0,0.00014158,2]
[331609873,1720578776487,-4481.36,0.00014158,2]
[331609874,1720578776496,-2722.72,0.00014158,2]
[331609875,1720578776506,-1043.36,0.00014158,2]
[331609876,1720578776516,-927.02,0.00014158,2]
[331609877,1720578776525,-500.0,0.00014158,2]
[331609878,1720578776535,-500.0,0.00014158,2]
[331609879,1720578776544,-3281.01,0.00014158,2]
[331609880,1720578777008,-500.0,0.00014158,2]
[331609881,1720578777024,-1356.64,0.00014158,2]
[331609882,1720578777034,-1807.88,0.00014158,2]
[331609883,1720578777044,-500.0,0.00014158,2]
[331609884,1720578777053,-500.0,0.00014158,2]
[331609885,1720578777063,-1143.16,0.00014158,2]
[331609886,1720578777072,-725.99,0.00014158,2]
[331609887,1720578777082,-568.75,0.00014158,2]
[331609888,1720578777091,-500.0,0.00014158,2]
[331609889,1720578777101,-500.0,0.00014158,2]
[331609890,1720578777110,-968.12,0.00014158,2]
[331609891,1720578777120,-3207.44,0.00014158,2]
[331609892,1720578777129,-1828.72,0.00014158,2]
[331609893,1720578777138,-717.01,0.00014158,2]
[331609894,1720578777148,-1258.63,0.00014158,2]
[331609895,1720578777159,-571.53,0.00014158,2]
[331609896,1720578777170,-500.0,0.00014158,2]
[331609897,1720578777180,-500.0,0.00014158,2]
[331609898,1720578777190,-1174.42,0.00014158,2]
[331609899,1720578777200,-5426.52,0.00014158,2]
[331609900,1720578777210,-1811.79,0.00014158,2]
[331609901,1720578777220,-500.0,0.00014158,2]
[331609902,1720578777229,-1125.78,0.00014158,2]
[331609903,1720578777239,-802.8,0.00014158,2]
[331609904,1720578777249,-500.0,0.00014158,2]
[331609905,1720578777259,-2890.79,0.00014158,2]
[331609906,1720578777268,-518.73,0.00014158,2]
[331609907,1720578777278,-2004.67074714,0.00014158,2]
[331609908,1720578777294,-1989.58963663,0.00014158,2]
[331609909,1720578777306,-311.46961623,0.00014158,2]
[331609910,1720578777316,-551.78356157,0.00014158,2]
[331609911,1720578777328,-347.833572,0.00014158,2]
[331609912,1720578777340,-43.86286643,0.00014158,2]
[331609913,1720578777349,-723.23065483,0.00014158,2]
[331609914,1720578777360,-585.1238113,0.00014158,2]
[331609915,1720578777372,-907.65657637,0.00014158,2]
[331609916,1720578777384,-1025.9989575,0.00014158,2]
[331609917,1720578777393,-1793.51,0.00014158,2]
[331609918,1720578777404,-2661.75,0.00014158,2]
[331609919,1720578777413,-689.55,0.00014158,2]
[331609920,1720578777423,-2557.46,0.00014158,2]
[331609921,1720578777433,-500.0,0.00014158,2]
[331609922,1720578777443,-713.54,0.00014158,2]
[331609923,1720578777453,-1271.47,0.00014158,2]
[331609924,1720578777463,-1083.72,0.00014158,2]
[331609925,1720578777473,-3740.98,0.00014158,2]
[331609926,1720578777483,-500.0,0.00014158,2]
[331609927,1720578777494,-1248.4,0.00014158,2]
[331609928,1720578777504,-500.0,0.00014158,2]
[331609929,1720578777513,-1181.57,0.00014158,2]
[331609930,1720578777523,-500.0,0.00014158,2]
[331609931,1720578777532,-765.33,0.00014158,2]
[331609932,1720578777545,-1479.51,0.00014158,2]
[331609933,1720578777554,-644.76,0.00014158,2]
[331609934,1720578777565,-794.79,0.00014158,2]
[331609935,1720578777575,-500.0,0.00014158,2]
[331609936,1720578777585,-2317.96,0.00014158,2]
[331609937,1720578777595,-2337.29,0.00014158,2]
[331609938,1720578777607,-1041.58,0.00014158,2]
[331609939,1720578777617,-500.0,0.00014158,2]
[331609940,1720578777628,-968.21,0.00014158,2]
[331609941,1720578777639,-500.0,0.00014158,2]
[331609942,1720578777650,-1923.02,0.00014158,2]
[331609943,1720578777663,-3463.97449815,0.00014158,2]
[331609944,1720578777675,-916.71550185,0.00014158,2]
[331609945,1720578777684,-500.0,0.00014158,2]
[331609946,1720578777694,-500.0,0.00014158,2]
[331609947,1720578777704,-1388.48488341,0.00014158,2]
[331609948,1720578777871,-440.56778781,0.00013783,2]
[331609949,1720578777884,-308.21682346,0.00013783,2]
[331609950,1720578777897,-88.63068315,0.00013783,2]
[331609951,1720578777909,-716.12775136,0.00013881,2]
[331609952,1720578777921,-590.50109525,0.00013881,2]
[331609953,1720578777933,-3608.15556039,0.00013881,2]
[331609954,1720578777943,-938.25924024,0.00013881,2]
[331609955,1720578777961,-547.1061916,0.00013881,2]
[331609956,1720578778892,-155.0,0.00012302,2]
[331609957,1720578778902,-837.41529442,0.00013842,2]
[331609958,1720578778911,-3429.41897516,0.00013881,2]
[331609959,1720578778921,-4914.784407,0.00013881,2]
[331609960,1720578778930,-152.644313,0.00013881,2]
[331609961,1720578778940,-2125.19053912,0.00013881,2]
[331609962,1720578778952,-298.31787138,0.00013881,2]
[331609963,1720578778964,-502.08381507,0.00013881,2]
[331609964,1720578778976,-1261.8553422,0.00013881,2]
[331609965,1720578778988,-456.95008335,0.00013881,2]
[331609966,1720578779000,-270.38675588,0.00013881,2]
[331609967,1720578779009,-193.135248,0.00013881,2]
[331609968,1720578779019,-152.644313,0.00013881,2]
[331609969,1720578779028,-193.135248,0.00013881,2]
[331609970,1720578779038,-500.0,0.00013881,2]
[331609971,1720578779047,-485.28950315,0.00013881,2]
[331609972,1720578779056,-279.31003005,0.00013881,2]
[331609973,1720578779066,-500.0,0.00013881,2]
[331609974,1720578779077,-193.135248,0.00013881,2]
[331609975,1720578779088,-500.0,0.00013881,2]
[331609976,1720578779097,-221.37427543,0.00013881,2]
[331609977,1720578779108,-500.0,0.00013881,2]
[331609978,1720578779118,-500.0,0.00013881,2]
[331609979,1720578779129,-193.135248,0.00013881,2]
[331609980,1720578779141,-152.644313,0.00013881,2]
[331609981,1720578779153,-152.644313,0.00013881,2]
[331609982,1720578779163,-4914.784407,0.00013882,2]
[331609983,1720578779173,-4914.784407,0.00013882,2]
[331609984,1720578779183,-4914.784407,0.00013882,2]
[331609985,1720578779192,-4914.784407,0.00013882,2]
[331609986,1720578779202,-2331.1902725,0.00013882,2]
[331609987,1720578779214,-2583.5941345,0.00013882,2]
[331609988,1720578779224,-4914.784407,0.00013882,2]
[331609989,1720578779233,-4914.784407,0.00013882,2]
[331609990,1720578779243,-4914.784407,0.00013882,2]
[331609991,1720578779386,-1359.96085297,0.00013882,2]
[331609992,1720578779401,-3075.0,0.00013882,2]
[331609993,1720578779413,-479.82355403,0.00013882,2]
[331609994,1720578779423,-7.93918761,0.00013882,2]
[331609995,1720578779434,-622.29187761,0.00013882,2]
[331609996,1720578779446,-296.26673161,0.00013882,2]
[331609997,1720578779458,-3806.86725448,0.00013882,2]
[331609998,1720578779469,-181.41935569,0.00013882,2]
[331609999,1720578779480,-193.135248,0.00013882,2]
[331610000,1720578779491,-4914.784413,0.00013882,2]
[331610001,1720578779501,-193.135248,0.00013882,2]
[331610002,1720578779512,-152.644313,0.00013882,2]
[331610003,1720578779522,-2394.169,0.00013965,2]
[331610004,1720578779531,-1303.743,0.00013965,2]
[331610005,1720578779541,-141.23511659,0.00014158,2]
[331610006,1720578779551,-500.0,0.00014158,2]
[331610007,1720578779560,-500.0,0.00014158,2]
[331610008,1720578779569,-500.0,0.00014158,2]
[331610009,1720578779580,-3238.09,0.00014158,2]
[331610010,1720578779590,-1002.12,0.00014158,2]
[331610011,1720578779600,-980.41,0.00014158,2]
[331610012,1720578779610,-500.0,0.00014158,2]
[331610013,1720578779619,-500.0,0.00014158,2]
[331610014,1720578779628,-1974.57,0.00014158,2]
[331610015,1720578779637,-952.07,0.00014158,2]
[331610016,1720578779646,-561.05939739,0.00014158,2]
[331610017,1720578779656,-658.29,0.00014158,2]
[331610018,1720578779666,-500.0,0.00014158,2]
[331610019,1720578779675,-500.0,0.00014158,2]
[331610020,1720578779684,-500.0,0.00014158,2]
[331610021,1720578779693,-500.0,0.00014158,2]
[331610022,1720578779702,-2293.08,0.00014158,2]
[331610023,1720578779711,-879.8,0.00014158,2]
[331610024,1720578779720,-5568.96,0.00014158,2]
[331610025,1720578779729,-500.0,0.00014158,2]
[331610026,1720578779738,-500.0,0.00014158,2]
[331610027,1720578779747,-2089.34,0.00014158,2]
[331610028,1720578779756,-3794.84,0.00014158,2]
[331610029,1720578779766,-500.0,0.00014158,2]